Workbook

Sheet Перелік СРВ
O1: Додаток 1
N2: до Санітарних правил
B4: ПОГОДЖУЮ | N4: ПОГОДЖУЮ
B5: ________________________________________ | M5: _______________________________________________
B6: (найменування посади керівника державного | M6: (найменування посади керівника органу виконавчої
B7: спеціалізованого | M7: влади з
B8: Директор ДСЛП "Рівнелісозахист" | M8: _______________________________________________
B9: лісозахисного підприємства) | M9: питань лісового господарства Автономної Республіки Крим або
B10: О.В. Кошин | M10: _______________________________________________
B11: (підпис, ініціали та прізвище) | M11: відповідного територіального органу Держлісагенства)
B12: "02" жовтня 2019 року | M12: ______________________________________________
M13: (пдпис, ініціали та прізвище)
M14: _____ _______________20___ року
O17: Додаток 1
N18: до Санітарних правил
B20: ПОГОДЖУЮ | N20: ПОГОДЖУЮ
B21: ________________________________________ | M21: _______________________________________________
B22: (найменування посади керівника державного | M22: (найменування посади керівника органу виконавчої
B23: спеціалізованого | M23: влади з
B24: ____________________________________ | M24: _______________________________________________
B25: лісозахисного підприємства) | M25: питань лісового господарства Автономної Республіки Крим або
B26: __________________________________________ | M26: _______________________________________________
B27: (підпис, ініціали та прізвище) | M27: відповідного територіального органу Держлісагенства)
B28: ____ _________________ 20 ____ року | M28: ______________________________________________
M29: (пдпис, ініціали та прізвище)
M30: _____ _______________20___ року
A37: ПЕРЕЛІК
A39: заходів з поліпшення санітарного стану лісів на 2019 рік
A40: ДП "Костопільський лісгосп"
A41: (найменування власника лісів, постійного лісокористувача)
A42: Рівненська обл.
A43: (Автономна Республіка Крим, область)
A45: Лісництво | B45: № кварталу | C45: № виділу | D45: Площа виділу, га | E45: № підвиділу | F45: Площа підвиділу, гектарів | H45: Коротка таксаційна характеристика відповідно до матеріалів лісовпрідкування | O45: Категорія захищеності | P45: Вид запланованих заходиів | Q45: Причини призначення заходів | R45: Орієнтовний запас деревини, що підлягає вирубуванню, м3/га | S45: Наявність рослин та тварин занесених до Червоної книги
F46: загальна | G46: у тому числі площа, можлива для експлуатації | H46: склад | I46: вік, років | J46: повнота | K46: бонітет | L46: середня висота, м | M46: середній діаметер, см | N46: запас деревостану, м3/га
A47: 1 | B47: 2 | C47: 3 | D47: 4 | E47: 5 | F47: 6 | G47: 7 | H47: 8 | I47: 9 | J47: 10 | K47: 11 | L47: 12 | M47: 13 | N47: 14 | O47: 15 | P47: 16 | Q47: 17 | R47: 18 | S47: 19
A48: Костопільське | B48: 15 | C48: 13 | D48: 2.8 | E48: 1 | F48: 0.3 | G48: 0.3 | H48: 10Сз+Влч | I48: 54 | J48: 0.9 | K48: 1А | L48: 24 | M48: 28 | N48: 470 | O48: 4 | P48: СРС | Q48: КВШ, комплекс еко.-клім. факторів | R48: 520 | S48: немає
B49: 15 | C49: 16 | D49: 0.9 | E49: 2 | F49: 0.3 | G49: 0.3 | H49: 10Сз | I49: 75 | J49: 0.7 | K49: 1А | L49: 27 | M49: 32 | N49: 420 | O49: 4 | P49: СРС | Q49: КВШ, комплекс еко.-клім. факторів | R49: 230 | S49: немає
B50: 16 | C50: 19 | D50: 1.4 | E50: 1 | F50: 0.6 | G50: 0.6 | H50: 10Сз+Гз | I50: 80 | J50: 0.7 | K50: 1Б | L50: 32 | M50: 40 | N50: 530 | O50: 2 | P50: СРС | Q50: КВШ, комплекс еко.-клім. факторів | R50: 430 | S50: немає
B51: 17 | C51: 8 | D51: 3 | E51: 1 | F51: 1 | G51: 1 | H51: 10Сз+Бп | I51: 80 | J51: 0.8 | K51: 1Б | L51: 31 | M51: 36 | N51: 570 | O51: 2 | P51: СРС | Q51: КВШ, комплекс еко.-клім. факторів | R51: 430 | S51: немає
B52: 17 | C52: 8 | D52: 3 | E52: 2 | F52: 1 | G52: 1 | H52: 10Сз+Бп | I52: 80 | J52: 0.8 | K52: 1Б | L52: 31 | M52: 36 | N52: 570 | O52: 2 | P52: СРС | Q52: КВШ, комплекс еко.-клім. факторів | R52: 480 | S52: немає
B53: 24 | C53: 17 | D53: 12.5 | E53: 2 | F53: 0.2 | H53: 10Сз | I53: 55 | J53: 0.75 | K53: 1А | L53: 24 | M53: 28 | N53: 390 | O53: 2 | P53: СРС | Q53: КВШ, комплекс еко.-клім. факторів | R53: 610 | S53: немає
B54: 24 | C54: 30 | D54: 0.6 | E54: 1 | F54: 0.3 | H54: 10Сз | I54: 50 | J54: 0.8 | K54: 1А | L54: 22 | M54: 26 | N54: 370 | O54: 2 | P54: СРС | Q54: Коренева губка | R54: 420 | S54: немає
B55: 27 | C55: 9 | D55: 2.7 | E55: 1 | F55: 0.3 | H55: 8Сз2Бп | I55: 63 | J55: 0.7 | K55: 1А | L55: 27 | M55: 30 | N55: 370 | O55: 2 | P55: СРС | Q55: КВШ, комплекс еко.-клім. факторів | R55: 420 | S55: немає
B56: 31 | C56: 17 | D56: 0.5 | E56: 1 | F56: 0.2 | H56: 10Сз | I56: 65 | J56: 0.8 | K56: 1А | L56: 27 | M56: 32 | N56: 480 | O56: 2 | P56: СРС | Q56: КВШ, комплекс еко.-клім. факторів | R56: 580 | S56: немає
B57: 46 | C57: 17 | D57: 4.8 | E57: 1 | F57: 0.1 | H57: 10Сз+Бп | I57: 65 | J57: 0.75 | K57: 1А | L57: 25 | M57: 26 | N57: 400 | O57: 2 | P57: СРС | Q57: КВШ, комплекс еко.-клім. факторів | R57: 570 | S57: немає
B58: 47 | C58: 2 | D58: 37 | E58: 1 | F58: 0.2 | H58: 10Сз+Бп | I58: 60 | J58: 0.8 | K58: 1А | L58: 26 | M58: 28 | N58: 450 | O58: 2 | P58: СРС | Q58: КВШ, комплекс еко.-клім. факторів | R58: 350 | S58: немає
B59: 55 | C59: 26 | D59: 1.4 | E59: 1 | F59: 0.4 | G59: 0.4 | H59: 10Сз+Дз+Бп | I59: 75 | J59: 0.7 | K59: 1А | L59: 29 | M59: 36 | N59: 460 | O59: 2 | P59: СРС | Q59: КВШ, комплекс еко.-клім. факторів | R59: 380 | S59: немає
B60: 59 | C60: 14 | D60: 8.1 | E60: 2 | F60: 0.4 | H60: 9Сз1Бп | I60: 51 | J60: 0.8 | K60: 1А | L60: 22 | M60: 26 | N60: 350 | O60: 2 | P60: СРС | Q60: Коренева губка | R60: 250 | S60: немає
B61: 85 | C61: 10 | D61: 4.3 | E61: 1 | F61: 0.5 | H61: 10Сз+Гз+Бп+Дз | I61: 58 | J61: 0.85 | K61: 1А | L61: 25 | M61: 28 | N61: 460 | O61: 2 | P61: СРС | Q61: КВШ, комплекс еко.-клім. факторів | R61: 240 | S61: немає
A62: Разом | D62: =SUM(D48:D61) -> 83 | F62: =SUM(F48:F61) -> 5.8 | G62: 3.6
A63: Мащанське | B63: 6 | C63: 7 | D63: 19 | E63: 2 | F63: 0.5 | H63: 5Сз1Дз1Бп3Гз | I63: 55 | J63: 0.7 | K63: 1 | L63: 21 | M63: 28 | N63: 190 | O63: 2 | P63: СРС | Q63: КВШ, комплекс еко.-клім. факторів | R63: 360 | S63: немає
B64: 12 | C64: 2 | D64: 14 | E64: 2 | F64: 0.8 | H64: 10Сз+Гз+Дз+Бп+Влч | I64: 60 | J64: 0.7 | K64: 1 | L64: 22 | M64: 30 | N64: 310 | O64: 2 | P64: СРС | Q64: КВШ, комплекс еко.-клім. факторів | R64: 350 | S64: немає
B65: 22 | C65: 18 | D65: 1.5 | E65: 1 | F65: 0.4 | H65: 9Сз1Дз+Бп | I65: 46 | J65: 0.8 | K65: 1 | L65: 18 | M65: 20 | N65: 250 | O65: 4 | P65: СРС | Q65: КВШ, комплекс еко.-клім. факторів | R65: 420 | S65: немає
B66: 22 | C66: 20 | D66: 2.7 | E66: 1 | F66: 0.9 | G66: 0.9 | H66: 9Сз1Бп | I66: 69 | J66: 0.7 | K66: 1 | L66: 24 | M66: 32 | N66: 350 | O66: 4 | P66: СРС | Q66: КВШ, комплекс еко.-клім. факторів | R66: 190 | S66: немає
B67: 32 | C67: 7 | D67: 5.4 | E67: 1 | F67: 0.4 | H67: 10Сз+Дз+Гз | I67: 52 | J67: 0.8 | K67: 1Б | L67: 26 | M67: 30 | N67: 460 | O67: 2 | P67: СРС | Q67: КВШ, комплекс еко.-клім. факторів | R67: 500 | S67: немає
B68: 32 | C68: 8 | D68: 3.8 | E68: 1 | F68: 0.4 | G68: 0.4 | H68: 9Сз1Ялє+Дз+Гз | I68: 80 | J68: 0.7 | K68: 1 | L68: 27 | M68: 30 | N68: 400 | O68: 2 | P68: СРС | Q68: КВШ, комплекс еко.-клім. факторів | R68: 520 | S68: немає
B69: 32 | C69: 9 | D69: 5.8 | E69: 1 | F69: 0.3 | H69: 10Сз+Бп+Гз+Дз | I69: 62 | J69: 0.97 | K69: 1Б | L69: 28 | M69: 30 | N69: 570 | O69: 2 | P69: СРС | Q69: КВШ, комплекс еко.-клім. факторів | R69: 420 | S69: немає
A70: Разом | D70: =SUM(D63:D69) -> 52.2 | F70: =SUM(F63:F69) -> 3.7 | G70: 1.3
A71: Моквинське | B71: 24 | C71: 1 | D71: 2.1 | E71: 2 | F71: 0.4 | H71: 10Сз | I71: 50 | J71: 0.8 | K71: 1 | L71: 18 | M71: 22 | N71: 280 | O71: 4 | P71: СРС | Q71: КВШ, комплекс еко.-клім. факторів | R71: 270 | S71: немає
B72: 24 | C72: 2 | D72: 0.9 | E72: 1 | F72: 0.5 | H72: 10Сз | I72: 45 | J72: 0.6 | K72: 1 | L72: 18 | M72: 20 | N72: 210 | O72: 4 | P72: СРС | Q72: Коренева губка | R72: 310 | S72: немає
B73: 24 | C73: 54 | D73: 1.1 | E73: 1 | F73: 0.2 | H73: 10Сз | I73: 48 | J73: 0.7 | K73: 1 | L73: 19 | M73: 20 | N73: 260 | O73: 4 | P73: СРС | Q73: КВШ, комплекс еко.-клім. факторів | R73: 360 | S73: немає
B74: 24 | C74: 55 | D74: 2.5 | E74: 3 | F74: 0.2 | H74: 10СзК+Бп | I74: 48 | J74: 0.6 | K74: 2 | L74: 17 | M74: 22 | N74: 200 | O74: 4 | P74: СРС | Q74: Коренева губка | R74: 290 | S74: немає
B75: 24 | C75: 58 | D75: 1.7 | E75: 1 | F75: 0.3 | H75: 10Сз+Бп | I75: 50 | J75: 0.75 | K75: 1а | L75: 22 | M75: 24 | N75: 340 | O75: 4 | P75: СРС | Q75: КВШ, комплекс еко.-клім. факторів | R75: 350 | S75: немає
B76: 63 | C76: 13 | D76: 13.7 | E76: 6 | F76: 0.8 | G76: 0.8 | H76: 10Сз | I76: 55 | J76: 0.8 | K76: 1 | L76: 20 | M76: 24 | N76: 280 | O76: 4 | P76: СРС | Q76: Коренева губка | R76: 110 | S76: немає
A77: Разом | D77: =SUM(D71:D76) -> 22 | F77: =SUM(F71:F76) -> 2.4 | G77: =SUM(G71:G76) -> 0.8
A78: Злазненське | B78: 9 | C78: 19 | D78: 8.5 | E78: 1 | F78: 0.1 | G78: 0.1 | H78: 10Сз+Бп+Ос | I78: 55 | J78: 0.7 | K78: 1 | L78: 21 | M78: 26 | N78: 300 | O78: 4 | P78: СРС | Q78: КВШ, комплекс еко.-клім. факторів | R78: 300 | S78: немає
B79: 10 | C79: 1 | D79: 15.9 | E79: 1 | F79: 0.5 | G79: 0.5 | H79: 10Сз+Бп | I79: 53 | J79: 0.8 | K79: 1 | L79: 21 | M79: 22 | N79: 340 | O79: 4 | P79: СРС | Q79: КВШ, комплекс еко.-клім. факторів | R79: 240 | S79: немає
B80: 12 | C80: 5 | D80: 1.8 | E80: 1 | F80: 0.2 | G80: 0.2 | H80: 5Сз(70)5Сз(45) | I80: 70 | J80: 0.8 | K80: 1 | L80: 22 | M80: 30 | N80: 340 | O80: 4 | P80: СРС | Q80: КВШ, комплекс еко.-клім. факторів | R80: 490 | S80: немає
B81: 16 | C81: 20 | D81: 4.2 | E81: 3 | F81: 0.5 | G81: 0.5 | H81: 9Сз1Гз | I81: 80 | J81: 0.6 | K81: 1 | L81: 25 | M81: 32 | N81: 340 | O81: 4 | P81: СРС | Q81: КВШ, комплекс еко.-клім. факторів | R81: 330 | S81: немає
B82: 17 | C82: 26 | D82: 7.8 | E82: 2 | F82: 0.3 | G82: 0.3 | H82: 10Сз+Бп | I82: 59 | J82: 0.75 | K82: 1 | L82: 22 | M82: 26 | N82: 340 | O82: 4 | P82: СРС | Q82: КВШ, комплекс еко.-клім. факторів | R82: 350 | S82: немає
B83: 17 | C83: 27 | D83: 2.7 | E83: 1 | F83: 0.7 | G83: 0.7 | H83: 8Сз1Дз1Влч | I83: 75 | J83: 0.5 | K83: 1 | L83: 23 | M83: 36 | N83: 200 | O83: 4 | P83: СРС | Q83: КВШ, комплекс еко.-клім. факторів | R83: 170 | S83: немає
A84: Разом | D84: =SUM(D78:D83) -> 40.9 | F84: =SUM(F78:F83) -> 2.3 | G84: =SUM(G78:G83) -> 2.3
A85: Стидинське | B85: 22 | C85: 29 | D85: 7.7 | E85: 1 | F85: 0.3 | G85: 0.3 | H85: 10Сз+Бп+Влч | I85: 58 | J85: 0.7 | K85: 1 | L85: 22 | M85: 26 | N85: 320 | O85: 4 | P85: СРС | Q85: КВШ, комплекс еко.-клім. факторів | R85: 320 | S85: немає
B86: 26 | C86: 7 | D86: 3.9 | E86: 1 | F86: 0.4 | G86: 0.4 | H86: 10Сз | I86: 57 | J86: 0.7 | K86: 2 | L86: 18 | M86: 20 | N86: 240 | O86: 4 | P86: СРС | Q86: Коренева губка | R86: 200 | S86: немає
B87: 46 | C87: 1 | D87: 1.2 | E87: 1 | F87: 0.2 | G87: 0.2 | H87: 9Влч1Сз+Бп+Ос | I87: 75 | J87: 0.65 | K87: 2 | L87: 22 | M87: 26 | N87: 240 | O87: 4 | P87: СРС | Q87: КВШ, комплекс еко.-клім. факторів | R87: 290 | S87: немає
B88: 56 | C88: 6 | D88: 4.5 | E88: 1 | F88: 0.4 | G88: 0.4 | H88: 9СзК1Бп+Лпд | I88: 52 | J88: 0.65 | K88: 1А | L88: 22 | M88: 26 | N88: 290 | O88: 4 | P88: СРС | Q88: КВШ, комплекс еко.-клім. факторів | R88: 230 | S88: немає
A89: Разом | D89: =SUM(D85:D88) -> 17.3 | F89: =SUM(F85:F88) -> 1.3 | G89: 1.3
A90: Мидське | B90: 10 | C90: 29 | D90: 2.4 | E90: 1 | F90: 0.3 | G90: 0.3 | H90: 7Влч1Сз1Бп1Ос+Гз | I90: 60 | J90: 0.7 | K90: 2 | L90: 22 | M90: 26 | N90: 250 | O90: 4 | P90: СРС | Q90: КВШ, комплекс еко.-клім. факторів | R90: 260 | S90: немає
B91: 15 | C91: 39 | D91: 10.2 | E91: 1 | F91: 0.5 | G91: 0.5 | H91: 10Сз | I91: 55 | J91: 0.7 | K91: 1 | L91: 21 | M91: 24 | N91: 290 | O91: 4 | P91: СРС | Q91: КВШ, комплекс еко.-клім. факторів | R91: 310 | S91: немає
B92: 17 | C92: 18 | D92: 21 | E92: 2 | F92: 0.2 | H92: 4Бп2Сз2Ос2Влч+Гз | I92: 50 | J92: 0.7 | K92: 1 | L92: 22 | M92: 28 | N92: 230 | O92: 4 | P92: СРС | Q92: КВШ, комплекс еко.-клім. факторів | R92: 360 | S92: немає
B93: 21 | C93: 44 | D93: 3.7 | E93: 1 | F93: 0.4 | G93: 0.4 | H93: 10Сз+Бп | I93: 75 | J93: 0.57 | K93: 2 | L93: 22 | M93: 28 | N93: 262 | O93: 4 | P93: СРС | Q93: КВШ, комплекс еко.-клім. факторів | R93: 180 | S93: немає
A94: Разом | D94: =SUM(D90:D93) -> 37.3 | F94: =SUM(F90:F93) -> 1.4 | G94: =SUM(G90:G93) -> 1.2
A95: Разом СРС | F95: =F94+F89+F84+F77+F70+F62 -> 16.9 | G95: =G94+G89+G84+G77+G70+G62 -> 10.5
A96: Всього | F96: 16.9 | G96: 10.3
A98: Директор ДП "Костопільський лісгосп | J98: ________________ | O98: Мелещук О.О.
A99: (найменування посади керівника підприємства, установи, організації) | J99: (підпис) | O99: (ініціали та прізвище)
... 1 more rows
